[Event "European-ch Seniors 2018"]
[Site "Drammen"]
[Date "2018.08.06"]
[Round "3"]
[White "Moe, Mogens"]
[Black "Werner, Clemens"]
[Result "1/2-1/2"]
[ECO "B13"]
[WhiteElo "2150"]
[BlackElo "2258"]
[Annotator "NA"]
[PlyCount "71"]
[EventDate "2018.08.04"]
[EventType "swiss"]
[EventCountry "NOR"]
[SourceTitle "playchess.com"]
[Source "ChessBase"]
[SourceQuality "1"]
[TimeControl "40/5400+30:1800+30"]

1. e4 {[%emt 0:00:00]} c6 {[%emt 0:00:00]} 2. d4 {[%emt 0:00:00]} d5 {[%emt 0:00:00]} 3. exd5 {[%emt 0:00:00]} cxd5 {[%emt 0:00:00]} 4. c4 {[%emt 0:00:00]} Nf6 {[%emt 0:00:04]} 5. Nc3 {[%emt 0:00:05]} Nc6 {[%emt 0:00:40]} 6. Bg5 {[%emt 0:00:24]} Be6 {[%emt 0:01:39]} 7. Bxf6 {[%emt 0:00:46]} exf6 {[%emt 0:00:44]} 8. c5 {[%emt 0:00:36]} g6 {[%emt 0:07:30]} 9. Bb5 {[%emt 0:01:56]} Bh6 {[%emt 0:01:34]} 10. Nge2 {[%emt 0:09:57]} O-O {[%emt 0:03:07]} 11. O-O {[%emt 0:00:16]} Re8 {[%emt 0:10:47]} 12. b4 {[%emt 0:06:38]} Re7 {[%emt 0:02:16]} 13. Bxc6 {[%emt 0:04:11]} bxc6 {[%emt 0:00:05]} 14. b5 {[%emt 0:01:15]} Bd7 {[%emt 0:11:52]} 15. a4 {[%emt 0:03:08]} Rb8 {[%emt 0:07:12]} 16. a5 {[%emt 0:06:49]} Rxb5 {[%emt 0:11:08]} 17. Nxb5 {[%emt 0:01:46]} cxb5 {[%emt 0:00:02]} 18. Re1 {[%emt 0:00:57]} a6 {[%emt 0:05:34]} 19. Nc3 {[%emt 0:02:37]} Be6 {[%emt 0:00:20]} 20. Qb3 {[%emt 0:05:10]} f5 {[%emt 0:05:04]} 21. Qb4 {[%emt 0:03:19]} Bf4 {[%emt 0:03:34]} 22. Ne2 {[%emt 0:06:34]} Bh6 {[%emt 0:02:38]} 23. Nc1 {[%emt 0:01:09]} f4 {[%emt 0:02:44]} 24. f3 {[%emt 0:01:15]} Bf5 {[%emt 0:00:32]} 25. Nb3 {[%emt 0:00:39]} Re3 {[%emt 0:00:34]} 26. c6 {[%emt 0:03:24]} Bf8 {[%emt 0:03:12]} 27. Nc5 {[%emt 0:00:31]} Qc8 {[%emt 0:02:08]} 28. Rxe3 {[%emt 0:08:10]} fxe3 {[%emt 0:00:08]} 29. Qc3 {[%emt 0:00:16]} Qxc6 {[%emt 0:04:36]} 30. g4 {[%emt 0:03:54]} Be6 {[%emt 0:03:01]} 31. Qxe3 {[%emt 0:01:21]} Bxc5 {[%emt 0:00:19]} 32. dxc5 {[%emt 0:00:12]} d4 {[%emt 0:00:29]} 33. Qxd4 {[%emt 0:00:35]} Qxf3 {[%emt 0:00:11]} 34. Rf1 {[%emt 0:00:59]} Qc6 {[%emt 0:01:53]} 35. Qd6 {[%emt 0:18:21]} Qe4 {[%emt 0:01:06]} 36. Qd8+ {[%emt 0:00:19]} 1/2-1/2

[Event "European-ch Seniors 2018"]
[Site "Drammen"]
[Date "2018.08.06"]
[Round "3"]
[White "Holst, Conny"]
[Black "Andersson, Kjell Ake"]
[Result "1-0"]
[ECO "E41"]
[WhiteElo "2147"]
[BlackElo "1940"]
[Annotator "NA"]
[PlyCount "43"]
[EventDate "2018.08.04"]
[EventType "swiss"]
[EventCountry "NOR"]
[SourceTitle "playchess.com"]
[Source "ChessBase"]
[SourceQuality "1"]
[TimeControl "40/5400+30:1800+30"]

1. d4 {[%emt 0:00:00]} Nf6 {[%emt 0:00:00]} 2. c4 {[%emt 0:00:00]} e6 {[%emt 0:00:00]} 3. Nc3 {[%emt 0:00:07]} Bb4 {[%emt 0:00:33]} 4. e3 {[%emt 0:00:45]} c5 {[%emt 0:00:31]} 5. Bd3 {[%emt 0:00:53]} Nc6 {[%emt 0:00:17]} 6. Nge2 {[%emt 0:03:57]} cxd4 {[%emt 0:02:00]} 7. exd4 {[%emt 0:00:31]} d5 {[%emt 0:00:21]} 8. cxd5 {[%emt 0:03:08]} Nxd5 {[%emt 0:03:48]} 9. O-O {[%emt 0:03:40]} O-O {[%emt 0:03:37]} 10. Nxd5 {[%emt 0:01:45]} Qxd5 {[%emt 0:01:44]} 11. Be3 {[%emt 0:04:56]} Be7 {[%emt 0:06:01]} 12. a3 {[%emt 0:14:54]} Qd8 {[%emt 0:08:07]} 13. Rc1 {[%emt 0:10:35]} Bf6 {[%emt 0:03:44]} 14. Qd2 {[%emt 0:08:42]} Ne7 {[%emt 0:03:44]} 15. Nc3 {[%emt 0:04:15]} Bd7 {[%emt 0:05:36]} 16. Ne4 {[%emt 0:06:17]} Nd5 {[%emt 0:01:43]} 17. Nxf6+ {[%emt 0:00:42]} Nxf6 {[%emt 0:00:19]} 18. Bg5 {[%emt 0:03:36]} Bc6 {[%emt 0:02:25]} 19. Rc5 {[%emt 0:02:34]} Bd5 {[%emt 0:06:02]} 20. Rfc1 {[%emt 0:00:41]} Kh8 {[%emt 0:04:19]} 21. Qf4 {[%emt 0:05:16]} Qb8 {[%emt 0:05:12]} 22. Qh4 {[%emt 0:01:30]} 1-0

[Event "European-ch Seniors 2018"]
[Site "Drammen"]
[Date "2018.08.06"]
[Round "3"]
[White "Bjerke, Richard"]
[Black "Elseth, Roar"]
[Result "1/2-1/2"]
[ECO "E15"]
[WhiteElo "2141"]
[BlackElo "2311"]
[Annotator "NA"]
[PlyCount "84"]
[EventDate "2018.08.04"]
[EventType "swiss"]
[EventCountry "NOR"]
[SourceTitle "playchess.com"]
[Source "ChessBase"]
[SourceQuality "1"]
[TimeControl "40/5400+30:1800+30"]

1. d4 {[%emt 0:00:00]} Nf6 {[%emt 0:00:08]} 2. c4 {[%emt 0:00:00]} e6 {[%emt 0:00:27]} 3. Nf3 {[%emt 0:01:36]} b6 {[%emt 0:00:20]} 4. g3 {[%emt 0:00:50]} Ba6 {[%emt 0:00:52]} 5. b3 {[%emt 0:00:50]} Bb4+ {[%emt 0:00:22]} 6. Bd2 {[%emt 0:00:12]} Be7 {[%emt 0:00:06]} 7. Bg2 {[%emt 0:00:34]} d5 {[%emt 0:01:11]} 8. cxd5 {[%emt 0:00:50]} exd5 {[%emt 0:00:07]} 9. O-O {[%emt 0:00:57]} O-O {[%emt 0:00:04]} 10. Nc3 {[%emt 0:00:14]} Bb7 {[%emt 0:04:59]} 11. Qc2 {[%emt 0:04:12]} c5 {[%emt 0:06:33]} 12. Bf4 {[%emt 0:02:11]} Nc6 {[%emt 0:22:49]} 13. Rfd1 {[%emt 0:06:13]} cxd4 {[%emt 0:10:43]} 14. Nb5 {[%emt 0:15:39]} Ne4 {[%emt 0:06:33]} 15. Nfxd4 {[%emt 0:07:16]} Nxd4 {[%emt 0:00:58]} 16. Nxd4 {[%emt 0:00:38]} Rc8 {[%emt 0:00:53]} 17. Qb2 {[%emt 0:05:32]} Bf6 {[%emt 0:01:55]} 18. Rac1 {[%emt 0:01:36]} Qd7 {[%emt 0:00:25]} 19. Be3 {[%emt 0:01:08]} Rxc1 {[%emt 0:02:34]} 20. Rxc1 {[%emt 0:00:49]} Rc8 {[%emt 0:00:30]} 21. Rc2 {[%emt 0:02:16]} b5 {[%emt 0:15:19]} 22. Qc1 {[%emt 0:01:55]} Rxc2 {[%emt 0:02:19]} 23. Qxc2 {[%emt 0:00:07]} b4 {[%emt 0:04:47]} 24. h4 {[%emt 0:05:08]} g6 {[%emt 0:04:12]} 25. Kh2 {[%emt 0:03:33]} Nc3 {[%emt 0:00:45]} 26. a3 {[%emt 0:03:18]} a5 {[%emt 0:00:42]} 27. axb4 {[%emt 0:03:04]} axb4 {[%emt 0:00:07]} 28. Qd2 {[%emt 0:01:22]} Ba6 {[%emt 0:02:53]} 29. Bf3 {[%emt 0:02:03]} Be7 {[%emt 0:01:34]} 30. Bh6 {[%emt 0:06:35]} Ne4 {[%emt 0:03:48]} 31. Qe1 {[%emt 0:09:06]} Bc8 {[%emt 0:01:41]} 32. Bg2 {[%emt 0:00:27]} Bc5 {[%emt 0:01:07]} 33. Be3 {[%emt 0:05:38]} Bb7 {[%emt 0:01:47]} 34. Qa1 {[%emt 0:04:07]} Qe7 {[%emt 0:00:58]} 35. Qc1 {[%emt 0:02:53]} Bd6 {[%emt 0:00:36]} 36. Kg1 {[%emt 0:00:56]} Nc3 {[%emt 0:00:19]} 37. Qd2 {[%emt 0:00:37]} Bc5 {[%emt 0:00:58]} 38. Bf3 {[%emt 0:00:48]} Ne4 {[%emt 0:00:23]} 39. Qc1 {[%emt 0:00:31]} Nc3 {[%emt 0:00:14]} 40. Qd2 {[%emt 0:00:00]} Ne4 {[%emt 0:00:00]} 41. Qc1 {[%emt 0:01:10]} Nc3 {[%emt 0:03:32]} 42. Qd2 {[%emt 0:00:19]} Ne4 {[%emt 0:06:04]} 1/2-1/2

[Event "European-ch Seniors 2018"]
[Site "Drammen"]
[Date "2018.08.06"]
[Round "3"]
[White "Schouten, Nico"]
[Black "Gaprindashvili, Nona"]
[Result "0-1"]
[ECO "A44"]
[WhiteElo "2126"]
[BlackElo "2305"]
[Annotator "NA"]
[PlyCount "116"]
[EventDate "2018.08.04"]
[EventType "swiss"]
[EventCountry "NOR"]
[SourceTitle "playchess.com"]
[Source "ChessBase"]
[SourceQuality "1"]
[TimeControl "40/5400+30:1800+30"]

1. d4 {[%emt 0:00:00]} c5 {[%emt 0:00:00]} 2. d5 {[%emt 0:00:00]} e5 {[%emt 0:00:00]} 3. dxe6 {[%emt 0:00:09]} fxe6 {[%emt 0:00:00]} 4. e4 {[%emt 0:00:07]} Nc6 {[%emt 0:01:56]} 5. Nf3 {[%emt 0:02:35]} d5 {[%emt 0:06:23]} 6. Bb5 {[%emt 0:01:23]} Qa5+ {[%emt 0:02:26]} 7. Nc3 {[%emt 0:00:34]} d4 {[%emt 0:00:02]} 8. Nxd4 {[%emt 0:05:46]} cxd4 {[%emt 0:02:37]} 9. Qh5+ {[%emt 0:18:57]} Kd8 {[%emt 0:01:29]} 10. Bg5+ {[%emt 0:01:35]} Be7 {[%emt 0:05:12]} 11. O-O-O {[%emt 0:06:22]} Bd7 {[%emt 0:02:31]} 12. f4 {[%emt 0:05:11]} g6 {[%emt 0:13:52]} 13. Qe2 {[%emt 0:08:25]} Bxg5 {[%emt 0:00:30]} 14. fxg5 {[%emt 0:00:09]} Nge7 {[%emt 0:09:40]} 15. Qd2 {[%emt 0:14:38]} Rf8 {[%emt 0:01:02]} 16. Bc4 {[%emt 0:00:15]} a6 {[%emt 0:01:06]} 17. h4 {[%emt 0:03:56]} Kc7 {[%emt 0:08:24]} 18. Qd3 {[%emt 0:04:39]} Rad8 {[%emt 0:01:25]} 19. Ne2 {[%emt 0:00:11]} Bc8 {[%emt 0:02:26]} 20. Kb1 {[%emt 0:01:55]} Qe5 {[%emt 0:01:33]} 21. g3 {[%emt 0:02:48]} Qc5 {[%emt 0:02:29]} 22. Bb3 {[%emt 0:00:47]} Ne5 {[%emt 0:05:51]} 23. Qd2 {[%emt 0:00:09]} Ng4 {[%emt 0:04:10]} 24. Nf4 {[%emt 0:04:55]} e5 {[%emt 0:00:38]} 25. Nd3 {[%emt 0:00:06]} Qd6 {[%emt 0:01:03]} 26. Rde1 {[%emt 0:01:30]} Nc6 {[%emt 0:01:04]} 27. Bd5 {[%emt 0:02:55]} Ne7 {[%emt 0:00:39]} 28. Bb3 {[%emt 0:00:54]} Kb8 {[%emt 0:00:23]} 29. Rhf1 {[%emt 0:03:28]} Ne3 {[%emt 0:06:25]} 30. Rxf8 {[%emt 0:01:11]} Rxf8 {[%emt 0:00:01]} 31. Qa5 {[%emt 0:00:08]} Nc6 {[%emt 0:00:35]} 32. Qb6 {[%emt 0:00:08]} Ka8 {[%emt 0:04:53]} 33. a3 {[%emt 0:01:15]} Rf3 {[%emt 0:01:31]} 34. Re2 {[%emt 0:06:27]} Rxg3 {[%emt 0:09:55]} 35. Rf2 {[%emt 0:00:06]} Rg1+ {[%emt 0:00:05]} 36. Ka2 {[%emt 0:00:04]} Rf1 {[%emt 0:00:09]} 37. Rxf1 {[%emt 0:00:15]} Nxf1 {[%emt 0:00:02]} 38. Bd5 {[%emt 0:00:05]} Be6 {[%emt 0:01:14]} 39. Bxe6 {[%emt 0:02:19]} Qxe6+ {[%emt 0:00:02]} 40. b3 {[%emt 0:00:00]} Ng3 {[%emt 0:00:00]} 41. Qc7 {[%emt 0:12:24]} Nxe4 {[%emt 0:02:39]} 42. Qxh7 {[%emt 0:00:06]} Ka7 {[%emt 0:05:31]} 43. Qg7 {[%emt 0:04:27]} Qf5 {[%emt 0:01:13]} 44. Kb2 {[%emt 0:01:21]} Kb6 {[%emt 0:03:34]} 45. b4 {[%emt 0:05:27]} Qe6 {[%emt 0:05:16]} 46. a4 {[%emt 0:05:46]} Nd6 {[%emt 0:04:38]} 47. a5+ {[%emt 0:02:29]} Kb5 {[%emt 0:04:15]} 48. Qc7 {[%emt 0:00:14]} Nc4+ {[%emt 0:01:09]} 49. Kc1 {[%emt 0:02:42]} Qe7 {[%emt 0:00:11]} 50. Qc8 {[%emt 0:01:00]} Nxb4 {[%emt 0:00:35]} 51. Nxb4 {[%emt 0:01:02]} Kxb4 {[%emt 0:00:20]} 52. Qg4 {[%emt 0:00:11]} Qf7 {[%emt 0:00:46]} 53. Qg2 {[%emt 0:00:27]} Kxa5 {[%emt 0:03:17]} 54. h5 {[%emt 0:00:06]} gxh5 {[%emt 0:02:08]} 55. g6 {[%emt 0:00:04]} Qf8 {[%emt 0:01:19]} 56. Qd5+ {[%emt 0:00:50]} b5 {[%emt 0:00:03]} 57. Qf7 {[%emt 0:00:10]} Qa3+ {[%emt 0:00:40]} 58. Kd1 {[%emt 0:00:06]} Qe3 {[%emt 0:00:23]} 0-1

[Event "European-ch Seniors 2018"]
[Site "Drammen"]
[Date "2018.08.06"]
[Round "3"]
[White "Mednikova, Svetlana"]
[Black "Johnsen, Sylvia"]
[Result "1/2-1/2"]
[ECO "C99"]
[WhiteElo "2110"]
[BlackElo "1977"]
[Annotator "NA"]
[PlyCount "143"]
[EventDate "2018.08.04"]
[EventType "swiss"]
[EventCountry "NOR"]
[SourceTitle "playchess.com"]
[Source "ChessBase"]
[SourceQuality "1"]
[TimeControl "40/5400+30:1800+30"]

1. e4 {[%emt 0:00:00]} e5 {[%emt 0:00:00]} 2. Nf3 {[%emt 0:01:13]} Nc6 {[%emt 0:00:00]} 3. Bb5 {[%emt 0:01:02]} a6 {[%emt 0:00:12]} 4. Ba4 {[%emt 0:01:51]} Nf6 {[%emt 0:00:08]} 5. O-O {[%emt 0:00:28]} Be7 {[%emt 0:00:08]} 6. Re1 {[%emt 0:00:27]} b5 {[%emt 0:00:07]} 7. Bb3 {[%emt 0:00:06]} d6 {[%emt 0:00:34]} 8. c3 {[%emt 0:00:28]} O-O {[%emt 0:00:57]} 9. h3 {[%emt 0:00:17]} Na5 {[%emt 0:00:12]} 10. Bc2 {[%emt 0:00:07]} c5 {[%emt 0:00:05]} 11. d4 {[%emt 0:00:22]} Qc7 {[%emt 0:00:09]} 12. Nbd2 {[%emt 0:00:40]} cxd4 {[%emt 0:02:55]} 13. cxd4 {[%emt 0:00:11]} Bd7 {[%emt 0:01:49]} 14. Nf1 {[%emt 0:02:04]} Rac8 {[%emt 0:00:54]} 15. Bd3 {[%emt 0:23:33]} Rfe8 {[%emt 0:06:12]} 16. b3 {[%emt 0:09:57]} Nc6 {[%emt 0:06:15]} 17. Bb2 {[%emt 0:02:43]} Bf8 {[%emt 0:01:44]} 18. Rc1 {[%emt 0:01:06]} Qb8 {[%emt 0:00:34]} 19. Ng3 {[%emt 0:06:55]} g6 {[%emt 0:03:16]} 20. d5 {[%emt 0:07:25]} Nb4 {[%emt 0:01:13]} 21. Bb1 {[%emt 0:01:00]} a5 {[%emt 0:00:07]} 22. Qd2 {[%emt 0:02:16]} Bg7 {[%emt 0:15:58]} 23. Ba3 {[%emt 0:10:00]} Rc5 {[%emt 0:13:07]} 24. Bxb4 {[%emt 0:01:06]} axb4 {[%emt 0:00:09]} 25. Qxb4 {[%emt 0:00:44]} Rec8 {[%emt 0:00:12]} 26. Qd2 {[%emt 0:05:05]} b4 {[%emt 0:00:44]} 27. Rxc5 {[%emt 0:05:01]} Rxc5 {[%emt 0:00:45]} 28. Rc1 {[%emt 0:01:54]} Bb5 {[%emt 0:03:49]} 29. Rxc5 {[%emt 0:04:57]} dxc5 {[%emt 0:00:07]} 30. Bd3 {[%emt 0:00:45]} Bh6 {[%emt 0:05:59]} 31. Qe2 {[%emt 0:04:05]} Be8 {[%emt 0:03:08]} 32. Qc2 {[%emt 0:01:21]} Qd6 {[%emt 0:02:35]} 33. Nd2 {[%emt 0:00:30]} Nd7 {[%emt 0:01:44]} 34. Nc4 {[%emt 0:00:46]} Qc7 {[%emt 0:01:04]} 35. Bf1 {[%emt 0:01:49]} Qb8 {[%emt 0:02:51]} 36. a4 {[%emt 0:00:28]} bxa3 {[%emt 0:00:44]} 37. Nxa3 {[%emt 0:00:07]} Qb4 {[%emt 0:02:05]} 38. Nc4 {[%emt 0:00:26]} f6 {[%emt 0:04:17]} 39. Nd6 {[%emt 0:01:56]} Kf8 {[%emt 0:01:59]} 40. Qc4 {[%emt 0:00:00]} Ke7 {[%emt 0:00:00]} 41. Nxe8 {[%emt 0:17:23]} Kxe8 {[%emt 0:10:32]} 42. Qa6 {[%emt 0:02:36]} Qb6 {[%emt 0:01:06]} 43. Bb5 {[%emt 0:03:39]} Qxa6 {[%emt 0:01:31]} 44. Bxa6 {[%emt 0:00:01]} Ke7 {[%emt 0:00:10]} 45. Kf1 {[%emt 0:00:34]} Kd6 {[%emt 0:02:48]} 46. Ke2 {[%emt 0:00:19]} Nb6 {[%emt 0:02:31]} 47. Kd3 {[%emt 0:00:56]} Bc1 {[%emt 0:00:57]} 48. Kc2 {[%emt 0:03:06]} Ba3 {[%emt 0:02:14]} 49. Bb5 {[%emt 0:03:38]} Bb4 {[%emt 0:02:18]} 50. Kd3 {[%emt 0:00:24]} Be1 {[%emt 0:01:35]} 51. Ke2 {[%emt 0:01:09]} Bb4 {[%emt 0:00:39]} 52. Nf1 {[%emt 0:02:00]} Nc8 {[%emt 0:05:52]} 53. Ne3 {[%emt 0:00:14]} Ke7 {[%emt 0:01:31]} 54. g3 {[%emt 0:01:07]} Nd6 {[%emt 0:00:16]} 55. Bd3 {[%emt 0:00:01]} Bc3 {[%emt 0:01:13]} 56. f4 {[%emt 0:00:17]} Bd4 {[%emt 0:02:07]} 57. Nc2 {[%emt 0:00:48]} Bc3 {[%emt 0:00:21]} 58. Kf3 {[%emt 0:00:32]} Kf7 {[%emt 0:01:42]} 59. Ne3 {[%emt 0:02:00]} Bd4 {[%emt 0:01:15]} 60. fxe5 {[%emt 0:00:51]} fxe5 {[%emt 0:00:31]} 61. Nc2 {[%emt 0:00:39]} Bc3 {[%emt 0:00:18]} 62. h4 {[%emt 0:00:42]} h5 {[%emt 0:00:26]} 63. g4 {[%emt 0:00:16]} Ba5 {[%emt 0:01:38]} 64. Ne3 {[%emt 0:01:16]} hxg4+ {[%emt 0:02:57]} 65. Nxg4 {[%emt 0:00:35]} Bc3 {[%emt 0:00:19]} 66. Ne3 {[%emt 0:00:35]} Ne8 {[%emt 0:02:37]} 67. Ng4 {[%emt 0:00:26]} Ke7 {[%emt 0:01:15]} 68. Bc4 {[%emt 0:00:28]} Kd6 {[%emt 0:01:01]} 69. Bb5 {[%emt 0:00:22]} Nc7 {[%emt 0:00:46]} 70. Bc4 {[%emt 0:00:43]} Ne8 {[%emt 0:00:15]} 71. Nh6 {[%emt 0:00:25]} Nf6 {[%emt 0:00:19]} 72. Ng4 {[%emt 0:00:42]} 1/2-1/2

[Event "European-ch Seniors 2018"]
[Site "Drammen"]
[Date "2018.08.06"]
[Round "3"]
[White "Edvardsen, Ragnar"]
[Black "Blechzin, Igor"]
[Result "1/2-1/2"]
[ECO "B36"]
[WhiteElo "1969"]
[BlackElo "2250"]
[Annotator "NA"]
[PlyCount "95"]
[EventDate "2018.08.04"]
[EventType "swiss"]
[EventCountry "NOR"]
[SourceTitle "playchess.com"]
[Source "ChessBase"]
[SourceQuality "1"]
[TimeControl "40/5400+30:1800+30"]

1. e4 {[%emt 0:00:00]} c5 {[%emt 0:00:00]} 2. Nf3 {[%emt 0:00:00]} Nc6 {[%emt 0:00:03]} 3. d4 {[%emt 0:00:30]} cxd4 {[%emt 0:00:06]} 4. Nxd4 {[%emt 0:00:15]} g6 {[%emt 0:00:17]} 5. c4 {[%emt 0:02:58]} Nf6 {[%emt 0:00:09]} 6. Nc3 {[%emt 0:00:13]} Nxd4 {[%emt 0:00:10]} 7. Qxd4 {[%emt 0:00:19]} d6 {[%emt 0:00:04]} 8. Be2 {[%emt 0:01:28]} Bg7 {[%emt 0:00:13]} 9. Be3 {[%emt 0:01:20]} O-O {[%emt 0:00:09]} 10. Qd2 {[%emt 0:01:16]} a5 {[%emt 0:00:34]} 11. O-O {[%emt 0:05:13]} a4 {[%emt 0:00:12]} 12. Rad1 {[%emt 0:01:23]} Qa5 {[%emt 0:05:08]} 13. f3 {[%emt 0:11:07]} Be6 {[%emt 0:10:53]} 14. Nd5 {[%emt 0:03:32]} Bxd5 {[%emt 0:02:16]} 15. exd5 {[%emt 0:00:38]} Nd7 {[%emt 0:02:45]} 16. b4 {[%emt 0:03:52]} axb3 {[%emt 0:00:17]} 17. axb3 {[%emt 0:00:21]} Qxd2 {[%emt 0:01:07]} 18. Rxd2 {[%emt 0:00:15]} Ra3 {[%emt 0:01:02]} 19. Rb1 {[%emt 0:00:36]} Nc5 {[%emt 0:03:18]} 20. Bd1 {[%emt 0:10:02]} Rb8 {[%emt 0:05:58]} 21. Bc2 {[%emt 0:05:35]} b5 {[%emt 0:03:30]} 22. Kf2 {[%emt 0:00:48]} bxc4 {[%emt 0:05:57]} 23. bxc4 {[%emt 0:00:24]} Rxb1 {[%emt 0:00:15]} 24. Bxb1 {[%emt 0:00:23]} Rb3 {[%emt 0:03:13]} 25. Bc2 {[%emt 0:09:19]} Rc3 {[%emt 0:00:51]} 26. Bxc5 {[%emt 0:01:12]} dxc5 {[%emt 0:00:08]} 27. Bd3 {[%emt 0:00:24]} Bd4+ {[%emt 0:02:03]} 28. Ke2 {[%emt 0:00:46]} Kg7 {[%emt 0:01:45]} 29. f4 {[%emt 0:03:26]} Ra3 {[%emt 0:05:42]} 30. h3 {[%emt 0:06:35]} h5 {[%emt 0:01:32]} 31. g4 {[%emt 0:07:29]} h4 {[%emt 0:00:43]} 32. Rd1 {[%emt 0:07:57]} Kf6 {[%emt 0:03:49]} 33. g5+ {[%emt 0:04:30]} Kg7 {[%emt 0:00:11]} 34. Kf3 {[%emt 0:01:52]} Ra2 {[%emt 0:01:58]} 35. Be2 {[%emt 0:04:24]} Rc2 {[%emt 0:01:45]} 36. Bf1 {[%emt 0:02:07]} Rf2+ {[%emt 0:07:52]} 37. Ke4 {[%emt 0:00:28]} f5+ {[%emt 0:04:10]} 38. gxf6+ {[%emt 0:00:22]} Kxf6 {[%emt 0:00:05]} 39. Rb1 {[%emt 0:00:47]} Bc3 {[%emt 0:03:29]} 40. Rb3 {[%emt 0:00:00]} Bd4 {[%emt 0:00:00]} 41. Rf3 {[%emt 0:01:43]} Ra2 {[%emt 0:06:41]} 42. Rb3 {[%emt 0:01:07]} Ra1 {[%emt 0:00:32]} 43. Rb6+ {[%emt 0:05:43]} Kf7 {[%emt 0:00:58]} 44. Be2 {[%emt 0:01:08]} Ra3 {[%emt 0:07:58]} 45. Bd3 {[%emt 0:00:38]} Ra2 {[%emt 0:02:42]} 46. Rb7 {[%emt 0:03:17]} Ra6 {[%emt 0:02:02]} 47. Kf3 {[%emt 0:01:24]} Ra3 {[%emt 0:01:53]} 48. Ke4 {[%emt 0:00:44]} 1/2-1/2

[Event "European-ch Seniors 2018"]
[Site "Drammen"]
[Date "2018.08.06"]
[Round "3"]
[White "Chireykina, Natalia"]
[Black "Burchardt, Brigitte"]
[Result "0-1"]
[ECO "B92"]
[WhiteElo "1922"]
[BlackElo "2189"]
[Annotator "NA"]
[PlyCount "82"]
[EventDate "2018.08.04"]
[EventType "swiss"]
[EventCountry "NOR"]
[SourceTitle "playchess.com"]
[Source "ChessBase"]
[SourceQuality "1"]
[TimeControl "40/5400+30:1800+30"]

1. e4 {[%emt 0:00:00]} c5 {[%emt 0:00:00]} 2. Nf3 {[%emt 0:00:00]} d6 {[%emt 0:00:00]} 3. d4 {[%emt 0:00:02]} cxd4 {[%emt 0:00:00]} 4. Nxd4 {[%emt 0:00:19]} Nf6 {[%emt 0:00:00]} 5. Nc3 {[%emt 0:00:35]} a6 {[%emt 0:00:00]} 6. Be2 {[%emt 0:00:50]} e5 {[%emt 0:00:03]} 7. Nb3 {[%emt 0:00:11]} Be7 {[%emt 0:00:06]} 8. Be3 {[%emt 0:01:14]} Be6 {[%emt 0:03:23]} 9. Nd5 {[%emt 0:02:02]} Nxd5 {[%emt 0:00:08]} 10. exd5 {[%emt 0:00:08]} Bf5 {[%emt 0:00:04]} 11. Qd2 {[%emt 0:00:59]} Nd7 {[%emt 0:01:31]} 12. O-O {[%emt 0:01:33]} O-O {[%emt 0:01:04]} 13. Na5 {[%emt 0:06:09]} Qc7 {[%emt 0:08:26]} 14. c4 {[%emt 0:00:56]} Nf6 {[%emt 0:12:15]} 15. b4 {[%emt 0:05:36]} Bd7 {[%emt 0:11:30]} 16. Rac1 {[%emt 0:12:13]} b6 {[%emt 0:13:42]} 17. Nb3 {[%emt 0:03:22]} Ba4 {[%emt 0:07:44]} 18. f3 {[%emt 0:07:39]} Rfc8 {[%emt 0:05:02]} 19. Qe1 {[%emt 0:00:11]} Qd8 {[%emt 0:01:16]} 20. Qf2 {[%emt 0:04:03]} b5 {[%emt 0:01:38]} 21. Na5 {[%emt 0:09:42]} bxc4 {[%emt 0:02:38]} 22. Bxc4 {[%emt 0:02:42]} Qd7 {[%emt 0:03:21]} 23. Qd2 {[%emt 0:09:26]} Bd8 {[%emt 0:00:42]} 24. Nc6 {[%emt 0:02:00]} Bxc6 {[%emt 0:02:29]} 25. dxc6 {[%emt 0:00:14]} Rxc6 {[%emt 0:02:49]} 26. Bxf7+ {[%emt 0:01:34]} Kxf7 {[%emt 0:00:24]} 27. Bg5 {[%emt 0:04:00]} Rac8 {[%emt 0:02:41]} 28. Rxc6 {[%emt 0:03:32]} Qxc6 {[%emt 0:02:07]} 29. Bxf6 {[%emt 0:02:00]} Bxf6 {[%emt 0:01:45]} 30. Rd1 {[%emt 0:04:36]} Be7 {[%emt 0:07:16]} 31. Qd3 {[%emt 0:00:46]} g6 {[%emt 0:00:52]} 32. f4 {[%emt 0:04:21]} exf4 {[%emt 0:01:40]} 33. Qh3 {[%emt 0:01:21]} h5 {[%emt 0:02:08]} 34. Re1 {[%emt 0:00:53]} Bf6 {[%emt 0:01:12]} 35. Qe6+ {[%emt 0:00:35]} Kg7 {[%emt 0:00:05]} 36. Rd1 {[%emt 0:01:06]} Qb6+ {[%emt 0:02:21]} 37. Kh1 {[%emt 0:02:42]} Rd8 {[%emt 0:01:06]} 38. a3 {[%emt 0:00:41]} Qe3 {[%emt 0:00:22]} 39. Qd5 {[%emt 0:00:00]} Qxa3 {[%emt 0:00:00]} 40. Qb7+ {[%emt 0:00:00]} Kh6 {[%emt 0:00:00]} 41. Qe4 {[%emt 0:03:01]} Qe3 {[%emt 0:01:15]} 0-1